bitfinex-derivatives/quotes_BTCF0:USTF0_20260104
["timestamp","ask_amount","ask_price","bid_price","bid_amount"]
[1767570759558,0.02780104,91503.0,91486.0,0.103895]
[1767570759750,0.02780104,91503.0,91489.0,0.010935]
[1767570759952,0.02780104,91503.0,91486.0,0.09296]
[1767570760162,0.09296,91509.0,91461.0,0.010938]
[1767570760163,0.00918792,91483.0,91461.0,0.010938]
[1767570760360,0.010934,91499.0,91453.0,0.05892033]
[1767570760361,0.00918792,91478.0,91460.0,0.09296]
[1767570760958,0.00918792,91478.0,91460.0,0.08296]
[1767570761158,0.00918792,91478.0,91461.0,0.010938]
[1767570762368,0.01861312,91482.0,91465.0,0.010937]
[1767570762670,0.09472313,91490.0,91460.0,0.17768313]
[1767570762671,0.00918792,91491.0,91474.0,0.010936]
[1767570762971,0.10214792,91491.0,91474.0,0.010936]
[1767570763573,0.09296,91491.0,91472.0,0.01917923]
[1767570764562,0.09296,91491.0,91473.0,0.010937]
[1767570765268,0.00918792,91500.0,91484.0,0.010935]
[1767570765467,0.09296,91499.0,91484.0,0.010935]
[1767570765669,0.10214792,91499.0,91484.0,0.010935]
[1767570765972,0.00918792,91498.0,91484.0,0.010935]
[1767570766170,0.00918792,91498.0,91475.0,0.01917923]
[1767570766368,0.00918792,91504.0,91481.0,0.01917923]
[1767570767163,0.00918792,91504.0,91486.0,0.010935]
[1767570767659,0.00918792,91503.0,91486.0,0.010935]
[1767570767867,0.00918792,91490.0,91478.0,0.010936]
[1767570768061,0.00918792,91490.0,91479.0,0.09296]
[1767570768670,0.00918792,91490.0,91479.0,0.08796]
[1767570769073,0.00918792,91490.0,91479.0,0.098896]
[1767570769872,0.02780104,91496.0,91479.0,0.098896]
[1767570770274,0.02780104,91496.0,91482.0,0.010936]
[1767570770676,0.02780104,91496.0,91479.0,0.08796]
[1767570770872,0.00918792,91495.0,91478.0,0.010936]
[1767570771071,0.00918792,91494.0,91478.0,0.010936]
[1767570772060,0.00918792,91494.0,91481.0,0.010936]
[1767570774474,0.00918792,91494.0,91477.0,0.010936]
[1767570776271,0.00918792,91494.0,91477.0,0.004936]
[1767570776977,0.00918792,91494.0,91479.0,0.010936]
[1767570778179,0.02012192,91493.0,91476.0,0.103896]
[1767570778372,0.00918792,91488.0,91473.0,0.010937]
[1767570778572,0.00918792,91485.0,91473.0,0.010937]
[1767570779668,0.00918792,91485.0,91471.0,0.09296]
[1767570780274,0.00918792,91480.0,91470.0,0.010937]
[1767570781274,0.00990906,91478.0,91457.0,0.01823622]
[1767570781479,0.00990906,91478.0,91455.0,0.06842259]
[1767570781480,0.00990906,91476.0,91462.0,0.010938]
[1767570782077,0.00990906,91476.0,91464.0,0.010938]
[1767570782479,0.01799601,91481.0,91464.0,0.010938]
[1767570783081,0.01799601,91481.0,91466.0,0.010937]
[1767570784184,0.01799601,91481.0,91459.0,0.01417322]
[1767570784384,0.01799601,91481.0,91466.0,0.010937]
[1767570785373,0.01799601,91481.0,91469.0,0.010937]
[1767570786982,0.09296,91486.0,91466.0,0.01823622]
[1767570787178,0.09296,91486.0,91478.0,0.010936]
[1767570787478,0.18774538,91490.0,91474.0,0.010936]
[1767570788174,0.18774538,91490.0,91476.0,0.010936]
[1767570788582,0.09296,91490.0,91476.0,0.010936]
[1767570789074,0.09296,91490.0,91478.0,0.010936]
[1767570790583,0.09296,91490.0,91475.0,0.010936]
[1767570790783,0.02790507,91489.0,91475.0,0.010936]
[1767570791782,0.02790507,91489.0,91469.0,0.093]
[1767570793181,0.02790507,91489.0,91474.0,0.010936]
[1767570794487,0.02790507,91489.0,91476.0,0.010936]
[1767570797789,0.02790507,91489.0,91473.0,0.010937]
[1767570797996,0.00990906,91487.0,91473.0,0.010937]
[1767570798383,8.3e-07,91499.0,91473.0,0.05892033]
[1767570798586,8.3e-07,91499.0,91482.0,0.05892033]
[1767570798792,8.3e-07,91499.0,91483.0,0.093]
[1767570799087,8.3e-07,91499.0,91491.0,0.010934]
[1767570799486,8.3e-07,91499.0,91489.0,0.090934]
[1767570800194,8.3e-07,91499.0,91491.0,0.010934]
[1767570800494,8.3e-07,91499.0,91489.0,0.090934]
[1767570800794,8.3e-07,91499.0,91488.0,0.103935]
[1767570800795,0.0279059,91499.0,91488.0,0.103935]
[1767570800989,0.00990989,91499.0,91488.0,0.103935]
[1767570801795,0.00990989,91499.0,91491.0,0.010934]
[1767570802696,8.3e-07,91499.0,91491.0,0.010934]
[1767570807201,8.3e-07,91499.0,91491.0,0.004934]
[1767570810704,8.3e-07,91499.0,91487.0,0.010935]
[1767570811096,8.3e-07,91499.0,91485.0,0.09296]
[1767570812009,8.3e-07,91499.0,91489.0,0.010935]
[1767570812190,0.02736777,91494.0,91482.0,0.010935]
[1767570812396,0.00941681,91491.0,91482.0,0.010935]
[1767570812602,0.01795096,91495.0,91482.0,0.010935]
[1767570814892,0.01795096,91495.0,91478.0,0.092895]
[1767570815107,0.00999441,91492.0,91473.0,0.00942669]
[1767570815409,0.00999441,91487.0,91480.0,0.010936]
[1767570815606,0.01633605,91491.0,91480.0,0.010936]
[1767570815806,0.02633046,91490.0,91480.0,0.010936]
[1767570816511,0.00999441,91490.0,91480.0,0.010936]
[1767570816705,0.02633046,91496.0,91480.0,0.010936]
[1767570816910,0.01633605,91495.0,91480.0,0.010936]
[1767570817307,0.02633046,91495.0,91480.0,0.010936]
[1767570818406,0.00999441,91495.0,91487.0,0.010935]
[1767570818609,0.01633688,91499.0,91487.0,0.010935]
[1767570819205,8.3e-07,91499.0,91487.0,0.010935]
[1767570820414,0.02633046,91497.0,91487.0,0.010935]
[1767570820814,0.02633046,91496.0,91487.0,0.010935]
[1767570821014,0.02633046,91496.0,91478.0,0.09296]
[1767570821414,0.02633046,91496.0,91478.0,0.10951634]
[1767570822110,0.02633046,91496.0,91485.0,0.010935]
[1767570822311,8.3e-07,91499.0,91485.0,0.010935]
[1767570822517,8.3e-07,91499.0,91481.0,0.01655634]
[1767570822715,8.3e-07,91499.0,91481.0,0.01155634]
[1767570824319,8.3e-07,91499.0,91487.0,0.010935]
[1767570826318,8.3e-07,91499.0,91489.0,0.010935]
[1767570830524,8.3e-07,91499.0,91484.0,0.01449134]
[1767570830824,8.3e-07,91499.0,91485.0,0.010935]
[1767570831422,8.3e-07,91499.0,91487.0,0.010935]
[1767570832025,8.3e-07,91499.0,91489.0,0.010935]
[1767570833724,8.3e-07,91499.0,91486.0,0.010935]
[1767570836616,0.01633605,91497.0,91483.0,0.010935]
[1767570836821,0.01633605,91495.0,91479.0,0.06985633]
[1767570837022,0.01633605,91495.0,91479.0,0.010936]
[1767570837320,0.01633605,91495.0,91478.0,0.05892033]
[1767570837321,0.01633605,91494.0,91478.0,0.05892033]
[1767570837522,0.01633605,91478.0,91472.0,0.09296]
[1767570837722,0.00999441,91479.0,91463.0,0.09296]
[1767570838316,0.00999441,91479.0,91464.0,0.010938]
[1767570838630,0.01633605,91484.0,91467.0,0.010937]
[1767570838829,0.01633605,91484.0,91469.0,0.010937]
[1767570839229,0.01633605,91484.0,91473.0,0.010937]
[1767570840224,0.01633605,91484.0,91477.0,0.010936]
[1767570840623,0.01633605,91484.0,91464.0,0.01655634]
[1767570840824,0.01633605,91484.0,91464.0,0.02566988]
[1767570841032,0.00999441,91485.0,91466.0,0.01792309]
[1767570841230,0.00999441,91485.0,91474.0,0.010936]
[1767570842028,0.02711372,91485.0,91474.0,0.010936]
[1767570844931,0.00919837,91478.0,91471.0,0.010937]
[1767570845121,0.01711931,91482.0,91471.0,0.010937]
[1767570845935,0.01711931,91485.0,91466.0,0.01292309]
[1767570847329,0.01711931,91485.0,91473.0,0.010937]
[1767570848629,0.01711931,91485.0,91475.0,0.010936]
[1767570849936,0.01711931,91485.0,91478.0,0.010936]
[1767570850138,0.01711931,91488.0,91478.0,0.010936]
[1767570853641,0.01711931,91488.0,91468.0,0.01585909]
[1767570855339,0.01711931,91484.0,91472.0,0.010937]
[1767570855942,0.09477769,91482.0,91472.0,0.010937]
[1767570856147,0.01711931,91484.0,91472.0,0.010937]
[1767570856742,0.09477769,91482.0,91472.0,0.010937]
[1767570857947,0.09477769,91482.0,91474.0,0.010936]
[1767570858948,0.01711931,91488.0,91470.0,0.01792309]
[1767570859140,0.09477769,91490.0,91479.0,0.010936]
[1767570859446,0.02631768,91504.0,91485.0,0.01792309]
[1767570859656,0.093,91500.0,91488.0,0.02885809]
[1767570859948,0.093,91500.0,91488.0,0.010935]
[1767570860148,0.18777769,91500.0,91488.0,0.010935]
[1767570861340,0.18777769,91500.0,91482.0,0.01792309]
[1767570861540,0.093,91500.0,91490.0,0.010935]
[1767570861745,0.18777769,91500.0,91490.0,0.010935]
[1767570862152,0.093,91500.0,91490.0,0.010935]
[1767570864739,0.093,91500.0,91486.0,0.010935]
[1767570865548,0.093,91500.0,91489.0,0.010935]
[1767570869059,0.093,91500.0,91487.0,0.01792309]
[1767570869258,0.093,91500.0,91489.0,0.010935]
[1767570870150,0.01711931,91505.0,91489.0,0.010935]
[1767570871759,0.0267532,91505.0,91489.0,0.010935]
[1767570872850,0.02708549,91504.0,91489.0,0.010935]
[1767570875258,0.02708549,91504.0,91491.0,0.010934]
[1767570876863,0.02708549,91504.0,91491.0,0.005934]
[1767570878268,0.01782927,91503.0,91491.0,0.005934]
[1767570882466,0.02775621,91503.0,91491.0,0.005934]
[1767570882968,0.02775621,91503.0,91488.0,0.010935]
[1767570884464,0.01782927,91502.0,91483.0,0.11088309]
[1767570884771,0.02775621,91502.0,91483.0,0.11088309]
[1767570885067,0.02775621,91502.0,91484.0,0.01754451]
[1767570885267,0.02775621,91502.0,91488.0,0.010935]
[1767570886657,0.01782927,91500.0,91485.0,0.010935]
[1767570886861,0.01782927,91487.0,91466.0,0.00962241]
[1767570887067,0.49296,91498.0,91455.0,0.010939]
[1767570887068,0.02775621,91476.0,91465.0,0.09296]
[1767570887263,0.02775621,91475.0,91465.0,0.09296]
[1767570887664,0.02775621,91475.0,91467.0,0.010937]
[1767570887873,0.00992694,91475.0,91467.0,0.010937]
[1767570888666,9.4e-07,91475.0,91463.0,0.09296]
[1767570888978,2.7e-07,91479.0,91463.0,0.09296]
[1767570889378,9.6e-07,91480.0,91463.0,0.09296]
[1767570889674,0.09296,91488.0,91463.0,0.09296]
[1767570889880,0.09296,91489.0,91487.0,0.010935]
[1767570890176,0.09296,91497.0,91490.0,0.010935]
[1767570890377,0.09296,91501.0,91490.0,0.010935]
[1767570890678,0.10288694,91501.0,91490.0,0.010935]
[1767570890877,0.10288694,91501.0,91476.0,0.00962241]
[1767570890878,0.10470463,91500.0,91477.0,0.01754451]
[1767570891384,0.0178301,91499.0,91477.0,0.02716692]
[1767570892475,0.0178301,91499.0,91477.0,0.00616692]
[1767570892681,0.01782927,91498.0,91477.0,0.00616692]
[1767570894287,0.01782927,91498.0,91488.0,0.010935]
[1767570895191,8.3e-07,91499.0,91490.0,0.010934]
[1767570895383,8.3e-07,91499.0,91483.0,0.02716692]
[1767570896886,8.3e-07,91499.0,91492.0,0.010934]
[1767570900290,8.3e-07,91499.0,91483.0,0.00962241]
[1767570901091,8.3e-07,91499.0,91493.0,0.010934]
[1767570902177,8.3e-07,91499.0,91488.0,0.03219066]
[1767570902595,8.3e-07,91499.0,91488.0,0.0090573]
[1767570903291,8.3e-07,91499.0,91490.0,0.010935]
[1767570906797,8.3e-07,91499.0,91492.0,0.010934]
[1767570907092,8.3e-07,91499.0,91474.0,0.103896]
[1767570907093,0.02411058,91483.0,91473.0,0.010937]
[1767570907295,0.11888827,91483.0,91473.0,0.010937]
[1767570907495,0.02411058,91482.0,91473.0,0.010937]
[1767570907885,0.02411058,91482.0,91465.0,0.090897]
[1767570909194,0.03399479,91490.0,91471.0,0.03219066]
[1767570909393,0.03399479,91490.0,91470.0,0.09477769]
[1767570909394,0.02411058,91501.0,91484.0,0.010935]
[1767570909693,0.02411058,91501.0,91470.0,0.09477769]
[1767570909694,0.00988421,91496.0,91478.0,0.010936]
[1767570909902,0.02411058,91487.0,91476.0,0.09296]
[1767570910089,0.02411058,91487.0,91477.0,0.010936]
[1767570910398,0.11888827,91490.0,91477.0,0.010936]
[1767570910601,0.02411058,91490.0,91477.0,0.010936]
[1767570912497,0.02411058,91498.0,91478.0,0.02313336]
[1767570912702,8.3e-07,91499.0,91486.0,0.010935]
[1767570913198,8.3e-07,91499.0,91489.0,0.010935]
[1767570915697,8.3e-07,91499.0,91486.0,0.02313336]
[1767570915902,8.3e-07,91499.0,91485.0,0.0090573]
[1767570917405,8.3e-07,91499.0,91488.0,0.010935]
[1767570918003,0.02411058,91498.0,91488.0,0.010935]
[1767570922609,0.09296,91501.0,91481.0,0.03219066]
[1767570922910,0.09296,91501.0,91491.0,0.010934]
[1767570923414,0.09296,91501.0,91491.0,0.004934]
[1767570923606,0.09296,91501.0,91475.0,0.0090573]
[1767570923912,0.03537953,91500.0,91481.0,0.010936]
[1767570924115,0.02444681,91499.0,91481.0,0.010936]
[1767570924411,0.010933,91500.0,91481.0,0.010936]
[1767570924809,0.02411058,91499.0,91481.0,0.010936]
[1767570925813,0.02411058,91496.0,91481.0,0.103896]
[1767570926506,0.02411058,91495.0,91481.0,0.103896]
[1767570927204,0.02411058,91495.0,91481.0,0.09296]
[1767570927409,0.02411058,91495.0,91484.0,0.010935]
[1767570927614,0.02411058,91495.0,91481.0,0.103896]
[1767570928502,0.02411058,91495.0,91484.0,0.010935]
[1767570929813,0.02411058,91495.0,91481.0,0.103896]
[1767570931112,0.02411058,91495.0,91481.0,0.094896]
[1767570932209,0.09296,91501.0,91474.0,0.010936]
[1767570932210,0.02124647,91492.0,91474.0,0.010936]
[1767570932416,0.02124647,91491.0,91477.0,0.010936]
[1767570932610,0.02124647,91491.0,91478.0,0.010936]
[1767570933215,0.02124647,91491.0,91477.0,0.010936]
[1767570933410,0.02124647,91491.0,91472.0,0.10245276]
[1767570933617,0.02124647,91491.0,91479.0,0.010936]
[1767570933811,0.02124647,91500.0,91481.0,0.00949276]
[1767570934013,0.02444707,91499.0,91483.0,0.010935]
[1767570934204,0.02444707,91498.0,91483.0,0.010935]
[1767570934407,0.02124647,91497.0,91483.0,0.010935]
[1767570937720,0.02124647,91497.0,91477.0,0.0202954]
[1767570937921,0.02254894,91496.0,91477.0,0.0202954]
[1767570938921,0.02254894,91495.0,91477.0,0.0162954]
[1767570939412,0.02254894,91499.0,91482.0,0.0093594]
[1767570939608,0.02254894,91497.0,91479.0,0.0093594]
[1767570939807,0.0244526,91496.0,91479.0,0.0093594]
[1767570940321,0.04700154,91496.0,91479.0,0.0093594]
[1767570940520,0.02254894,91496.0,91479.0,0.0093594]
[1767570941122,0.02445336,91495.0,91479.0,0.0093594]
[1767570941311,0.02445336,91494.0,91479.0,0.0093594]
[1767570941511,0.02254894,91496.0,91479.0,0.0093594]
[1767570941718,0.02445401,91495.0,91479.0,0.0093594]
[1767570941918,0.02445401,91494.0,91480.0,0.010936]
[1767570942221,0.02254894,91496.0,91480.0,0.010936]
[1767570942421,0.02445405,91495.0,91480.0,0.010936]
[1767570942722,0.02445405,91494.0,91480.0,0.010936]
[1767570942920,0.02254894,91496.0,91480.0,0.010936]
[1767570943121,0.02445477,91495.0,91480.0,0.010936]
[1767570943321,0.02445477,91494.0,91480.0,0.010936]
[1767570943523,0.02254894,91496.0,91480.0,0.010936]
[1767570943722,0.02445431,91495.0,91480.0,0.010936]
[1767570944023,0.02445431,91494.0,91480.0,0.010936]
[1767570944323,0.02254894,91496.0,91480.0,0.010936]
[1767570944525,0.02445124,91495.0,91480.0,0.010936]
[1767570944723,0.02445124,91494.0,91480.0,0.010936]
[1767570944924,0.02254894,91496.0,91480.0,0.010936]
[1767570945114,0.02445127,91495.0,91480.0,0.010936]
[1767570945313,0.02445127,91494.0,91480.0,0.010936]
[1767570945622,0.02254894,91496.0,91480.0,0.010936]
[1767570945823,0.02445112,91495.0,91480.0,0.010936]
[1767570946025,0.02445112,91494.0,91480.0,0.010936]
[1767570946227,0.02254894,91496.0,91480.0,0.010936]
[1767570946418,0.02433689,91495.0,91479.0,0.0093594]
[1767570946619,0.02433689,91494.0,91480.0,0.010936]
[1767570946818,0.02254894,91496.0,91480.0,0.010936]
[1767570947021,0.02433679,91495.0,91480.0,0.010936]
[1767570947219,0.02433679,91494.0,91480.0,0.010936]
[1767570947420,0.02254894,91496.0,91480.0,0.010936]
[1767570947622,0.02433684,91495.0,91480.0,0.010936]
[1767570947822,0.02433684,91494.0,91483.0,0.010935]
[1767570948119,0.02254894,91496.0,91483.0,0.010935]
[1767570948314,0.02433688,91495.0,91483.0,0.010935]
[1767570948519,0.02433688,91494.0,91483.0,0.010935]
[1767570948818,0.02254894,91496.0,91483.0,0.010935]
[1767570949018,0.02433716,91495.0,91483.0,0.010935]
[1767570949225,0.02433716,91494.0,91483.0,0.010935]
[1767570949535,0.02254894,91496.0,91483.0,0.010935]
[1767570949726,0.02433724,91495.0,91483.0,0.010935]
[1767570949922,0.02433724,91494.0,91483.0,0.010935]
[1767570950228,0.02254894,91496.0,91483.0,0.010935]
[1767570950428,0.02433721,91495.0,91483.0,0.010935]
[1767570950729,0.02218367,91493.0,91474.0,0.0093594]
[1767570950918,0.02218367,91491.0,91473.0,0.0093594]
[1767570951119,0.02218367,91491.0,91473.0,0.0297004]
[1767570951319,0.02197347,91496.0,91474.0,0.0093594]
[1767570951521,0.02197347,91494.0,91474.0,0.0093594]
[1767570951722,0.03290747,91492.0,91474.0,0.0093594]
[1767570951917,0.03145916,91484.0,91470.0,0.010937]
[1767570952123,0.02197347,91482.0,91469.0,0.00218655]
[1767570952928,0.02197347,91482.0,91473.0,0.010937]
[1767570953231,0.00017964,91469.0,91451.0,0.09296]
[1767570953732,0.00017964,91469.0,91451.0,0.1023194]
[1767570953933,0.00017964,91469.0,91452.0,0.0093594]
[1767570954230,0.00017964,91469.0,91452.0,0.010939]
[1767570955424,0.00017964,91469.0,91455.0,0.010939]
[1767570955932,0.00017964,91469.0,91451.0,0.12424]
[1767570956232,0.01037509,91472.0,91453.0,0.0093594]
[1767570958626,0.01037509,91472.0,91454.0,0.010939]
[1767570958627,0.0008894,91472.0,91454.0,0.010939]
[1767570958832,0.0118264,91472.0,91454.0,0.0202984]
[1767570960735,0.010937,91472.0,91454.0,0.0093594]
[1767570961537,0.010937,91469.0,91454.0,0.0093594]
[1767570961936,0.010937,91469.0,91454.0,0.0013594]
[1767570962937,0.010937,91472.0,91454.0,0.0013594]
[1767570963629,0.010937,91472.0,91454.0,0.0122984]
[1767570965139,0.010936,91475.0,91455.0,0.010939]
[1767570965930,0.010936,91475.0,91457.0,0.010938]
[1767570969041,0.010937,91473.0,91457.0,0.010938]
[1767570969640,0.010937,91473.0,91454.0,0.02228969]
[1767570970139,0.010937,91473.0,91457.0,0.010938]
[1767570970644,0.010937,91473.0,91458.0,0.02079]
[1767570973435,0.010937,91471.0,91458.0,0.02079]
[1767570973743,0.010936,91474.0,91458.0,0.02079]
[1767570975843,0.010936,91474.0,91458.0,0.04172029]
[1767570976045,0.10278783,91482.0,91460.0,0.02093029]
[1767570976343,0.02450028,91481.0,91460.0,0.02093029]
[1767570976541,0.11929788,91480.0,91460.0,0.02093029]
[1767570976740,0.02450028,91479.0,91460.0,0.02093029]
[1767570977146,0.010936,91475.0,91460.0,0.02093029]
[1767570977444,0.010936,91475.0,91460.0,0.00793029]
[1767570979448,0.02452415,91474.0,91460.0,0.00793029]
[1767570979640,0.010936,91475.0,91460.0,0.00793029]
[1767570979841,0.02452412,91474.0,91460.0,0.00793029]
[1767570980041,0.010936,91475.0,91460.0,0.00793029]
[1767570980341,0.0947976,91470.0,91460.0,0.00793029]
[1767570980541,0.0947976,91470.0,91459.0,0.00974661]
[1767570982043,0.00929423,91478.0,91459.0,0.00974661]
[1767570982246,0.0245547,91477.0,91463.0,0.02093029]
[1767570982445,0.0245547,91476.0,91463.0,0.02093029]
[1767570982643,0.0245547,91475.0,91462.0,0.00974661]
[1767570982947,0.0245547,91474.0,91462.0,0.00974661]
[1767570983149,0.0245547,91473.0,91462.0,0.00974661]
[1767570983448,0.093,91477.0,91470.0,0.0306769]
[1767570983955,0.093,91477.0,91470.0,0.00974661]
[1767570984252,0.093,91477.0,91466.0,0.02093029]
[1767570984954,0.093,91477.0,91466.0,0.00693029]
[1767570985345,0.093,91477.0,91465.0,0.00974661]
[1767570987953,0.093,91477.0,91465.0,0.0306769]
[1767570988154,0.093,91477.0,91466.0,0.02079]
[1767570989246,0.11228872,91477.0,91466.0,0.02079]
[1767570989451,0.093,91477.0,91466.0,0.02079]
[1767570992757,0.093,91477.0,91466.0,0.00679]
[1767570995342,0.02445656,91476.0,91466.0,0.00679]
[1767570995546,0.02445656,91475.0,91466.0,0.00679]
[1767570995747,0.02445656,91474.0,91466.0,0.00679]
[1767570995946,0.02445656,91473.0,91466.0,0.00679]
[1767570996158,0.093,91477.0,91466.0,0.00679]
[1767570996159,0.02445656,91472.0,91466.0,0.00679]
[1767570996347,0.093,91477.0,91466.0,0.00679]
[1767570996548,0.02445643,91476.0,91466.0,0.00679]
[1767570996849,0.02445643,91475.0,91466.0,0.00679]
[1767570997142,0.02445643,91474.0,91466.0,0.00679]
[1767570997345,0.02445643,91473.0,91466.0,0.00679]
[1767570997545,0.02445643,91472.0,91466.0,0.00679]
[1767570997853,0.093,91477.0,91466.0,0.00679]
[1767570998046,0.0244564,91476.0,91466.0,0.00679]
[1767570998247,0.0244564,91475.0,91466.0,0.00679]
[1767570998447,0.0244564,91474.0,91466.0,0.00679]
[1767570998647,0.0244564,91473.0,91466.0,0.00679]
[1767570998848,0.0244564,91472.0,91466.0,0.00679]
[1767570999057,0.093,91477.0,91466.0,0.00679]
[1767570999359,0.02445646,91476.0,91466.0,0.00679]
[1767570999548,0.02445646,91475.0,91466.0,0.00679]
[1767570999748,0.02445646,91474.0,91466.0,0.00679]
[1767570999954,0.02445646,91473.0,91466.0,0.00679]
[1767571000155,0.02445646,91472.0,91466.0,0.00679]
[1767571000355,0.093,91477.0,91466.0,0.00679]
[1767571000556,0.02445644,91476.0,91466.0,0.00279]
[1767571000757,0.02445644,91475.0,91466.0,0.00279]
[1767571000949,0.02445644,91474.0,91466.0,0.00279]
[1767571001150,0.02445644,91473.0,91466.0,0.00279]
[1767571001354,0.02445644,91472.0,91460.0,0.00974661]
[1767571001554,0.02445644,91471.0,91460.0,0.00974661]
[1767571001759,0.010936,91476.0,91460.0,0.00974661]
[1767571001961,0.02445655,91475.0,91460.0,0.00974661]
[1767571002159,0.02445655,91474.0,91460.0,0.00974661]
[1767571002363,0.02445655,91473.0,91460.0,0.00974661]
[1767571002559,0.02445655,91472.0,91460.0,0.00974661]
[1767571002751,0.02445655,91471.0,91460.0,0.00974661]
[1767571002951,0.010936,91476.0,91460.0,0.00974661]
[1767571003152,0.02445635,91475.0,91460.0,0.00974661]
[1767571003353,0.02445635,91474.0,91460.0,0.00974661]
[1767571003554,0.02445635,91473.0,91460.0,0.00974661]
[1767571003756,0.02445635,91472.0,91460.0,0.00974661]
[1767571003960,0.02445635,91471.0,91460.0,0.00974661]
[1767571004151,0.01995066,91475.0,91459.0,0.010938]
[1767571004349,0.02445671,91474.0,91456.0,0.01966387]
[1767571004555,0.02445671,91473.0,91461.0,0.010938]
[1767571004754,0.02445671,91472.0,91461.0,0.010938]
[1767571004963,0.01995066,91475.0,91461.0,0.010938]
[1767571004964,0.02445671,91471.0,91461.0,0.010938]
[1767571005264,0.02445671,91471.0,91456.0,0.02929757]
[1767571005265,0.11295066,91477.0,91456.0,0.02929757]
[1767571005562,0.02445709,91476.0,91459.0,0.02929757]
[1767571005755,0.02445709,91475.0,91459.0,0.02929757]
[1767571005953,0.02445709,91474.0,91459.0,0.02929757]
[1767571006153,0.02445709,91473.0,91459.0,0.02929757]
[1767571006353,0.02445709,91472.0,91463.0,0.010938]
[1767571006554,0.02445709,91471.0,91463.0,0.010938]
[1767571006762,0.11295066,91477.0,91463.0,0.010938]
[1767571006961,0.01,99700.0,91484.0,0.02929757]
[1767571006962,0.1877976,91500.0,91484.0,0.02929757]
[1767571007157,0.010934,91495.0,91484.0,0.02929757]
[1767571007465,0.0947976,91494.0,91480.0,0.01966387]
[1767571007651,0.0947976,91490.0,91477.0,0.0096337]
[1767571007855,0.0947976,91490.0,91477.0,0.02929757]
[1767571008055,0.0947976,91490.0,91477.0,0.01966387]
[1767571008262,0.0947976,91490.0,91477.0,0.02823357]
[1767571012054,0.02964135,91495.0,91477.0,0.02823357]
[1767571013966,0.010934,91494.0,91474.0,0.010936]
[1767571014169,0.02964135,91492.0,91474.0,0.010936]
[1767571014356,0.02964135,91491.0,91474.0,0.010936]
[1767571014551,0.02964135,91486.0,91471.0,0.010937]
[1767571015864,0.02964135,91476.0,91470.0,0.093]
[1767571016056,0.00969069,91476.0,91468.0,0.093]
[1767571016257,0.01995066,91480.0,91468.0,0.093]
[1767571016461,0.10448829,91481.0,91468.0,0.093]
[1767571016772,0.10448829,91481.0,91468.0,0.103937]
[1767571016973,0.00969069,91481.0,91468.0,0.103937]
[1767571017774,0.02964135,91481.0,91468.0,0.103937]
[1767571018459,0.02964135,91480.0,91468.0,0.103937]
[1767571018869,0.12443895,91480.0,91468.0,0.103937]
[1767571019771,0.10448829,91480.0,91468.0,0.103937]
[1767571021373,0.12255992,91480.0,91468.0,0.103937]
[1767571022569,0.12255992,91480.0,91462.0,0.01966387]
[1767571022874,0.12255992,91480.0,91463.0,0.093]
[1767571023078,0.12255992,91480.0,91468.0,0.010937]
[1767571023378,0.00969069,91480.0,91470.0,0.010937]
[1767571023673,0.10448829,91480.0,91463.0,0.11108241]
[1767571023874,0.10448829,91480.0,91464.0,0.093]
[1767571023875,0.00969069,91480.0,91464.0,0.093]
[1767571025169,0.00969069,91480.0,91469.0,0.010937]
[1767571029679,0.00969069,91480.0,91471.0,0.010937]
[1767571031273,0.00969069,91480.0,91471.0,0.004937]
[1767571035480,0.01807163,91484.0,91473.0,0.010937]
[1767571035682,0.01807163,91484.0,91475.0,0.010936]
[1767571036678,0.00975237,91486.0,91467.0,0.11108241]
[1767571036876,0.88112756,91512.0,91467.0,0.11108241]
[1767571036877,0.01311983,91499.0,91482.0,0.010935]
[1767571037072,0.01311983,91499.0,91478.0,0.01808241]
[1767571037073,0.11696905,91498.0,91484.0,0.010935]
[1767571037276,0.02396905,91497.0,91481.0,0.010936]
[1767571037477,0.02396905,91496.0,91481.0,0.010936]
[1767571037680,0.02396905,91495.0,91481.0,0.010936]
[1767571037877,0.02396905,91494.0,91481.0,0.010936]
[1767571038082,0.02396905,91493.0,91481.0,0.010936]
[1767571038286,0.02396905,91492.0,91481.0,0.010936]
[1767571038579,0.02396905,91491.0,91481.0,0.010936]
[1767571038774,0.01807163,91494.0,91481.0,0.010936]
[1767571038974,0.02396475,91493.0,91473.0,0.01808241]
[1767571039174,0.02396475,91492.0,91480.0,0.010936]
[1767571039382,0.02396475,91491.0,91480.0,0.010936]
[1767571039597,0.01807163,91494.0,91480.0,0.010936]
[1767571039786,0.02396352,91493.0,91480.0,0.010936]
[1767571040082,0.02396352,91492.0,91480.0,0.010936]
[1767571040283,0.01807163,91494.0,91480.0,0.010936]
[1767571040475,0.02395493,91493.0,91480.0,0.010936]
[1767571040676,0.02395493,91492.0,91480.0,0.010936]
[1767571040878,0.01807163,91494.0,91480.0,0.010936]
[1767571041079,0.02395492,91493.0,91480.0,0.010936]
[1767571041276,0.02395492,91492.0,91480.0,0.010936]
[1767571041475,0.01807163,91494.0,91480.0,0.010936]
[1767571041676,0.02395407,91493.0,91480.0,0.010936]
[1767571041882,0.02395407,91492.0,91480.0,0.010936]
[1767571042081,0.01807163,91494.0,91480.0,0.010936]
[1767571042281,0.02395389,91493.0,91480.0,0.010936]
[1767571042482,0.02395389,91492.0,91480.0,0.010936]
[1767571042681,0.01807163,91494.0,91480.0,0.010936]
[1767571042882,0.02395318,91493.0,91480.0,0.010936]
[1767571043083,0.02395318,91492.0,91480.0,0.010936]
[1767571043284,0.01807163,91494.0,91480.0,0.010936]
[1767571043491,0.02395257,91493.0,91480.0,0.010936]
[1767571043689,0.02395257,91492.0,91480.0,0.010936]
[1767571043893,0.01807163,91494.0,91480.0,0.010936]
[1767571044083,0.02395257,91493.0,91480.0,0.010936]
[1767571044283,0.02395257,91492.0,91480.0,0.010936]
[1767571044484,0.02395257,91491.0,91480.0,0.010936]
[1767571044791,0.02395257,91490.0,91480.0,0.010936]
[1767571044989,0.01807163,91494.0,91480.0,0.010936]
[1767571045188,0.02395204,91493.0,91480.0,0.010936]
[1767571045388,0.02395204,91492.0,91480.0,0.010936]
[1767571045584,0.02395204,91491.0,91480.0,0.010936]
[1767571045790,0.02395204,91490.0,91480.0,0.010936]
[1767571046089,0.01807163,91494.0,91480.0,0.010936]
[1767571046293,0.02395159,91493.0,91480.0,0.010936]
[1767571046595,0.02395159,91492.0,91480.0,0.010936]
[1767571046785,0.02395159,91491.0,91480.0,0.005936]